bitfinex-derivatives/quotes_ETHF0:USTF0_20250103
["timestamp","ask_amount","ask_price","bid_price","bid_amount"]
[1735911756529,0.28667,3491.2,3491.0,0.28669]
[1735911756720,3.2078,3491.9,3490.6,5.88895295]
[1735911756920,0.28666,3491.5,3491.2,0.28667]
[1735911757123,3.2078,3491.9,3491.0,5.88895295]
[1735911757329,40.8,3492.0,3491.5,0.28665]
[1735911757530,0.28664,3491.7,3491.5,0.28665]
[1735911757819,40.8,3492.0,3491.9,0.28662]
[1735911758025,0.28658,3492.4,3491.9,3.2078]
[1735911758223,4.48756225,3492.6,3491.9,3.2078]
[1735911758427,0.28657,3492.5,3492.1,0.2866]
[1735911758623,3.2078,3492.4,3491.9,3.2078]
[1735911758817,3.2078,3492.4,3491.4,2.68115295]
[1735911758818,3.2078,3492.4,3491.5,3.2078]
[1735911759024,3.2078,3492.0,3491.1,3.2078]
[1735911759219,0.28664,3491.6,3491.2,0.28667]
[1735911759424,0.28664,3491.6,3491.3,0.28666]
[1735911759824,0.28664,3491.7,3491.4,0.28666]
[1735911760017,0.28664,3491.7,3491.3,0.28666]
[1735911760829,0.28664,3491.7,3491.1,3.2078]
[1735911760830,0.28664,3491.7,3491.4,0.28665]
[1735911762631,0.28663,3491.7,3491.4,0.28665]
[1735911763019,0.28663,3491.7,3491.1,3.2078]
[1735911763020,0.28664,3491.6,3491.3,0.28666]
[1735911763226,3.2078,3491.5,3490.7,3.2078]
[1735911763731,0.28667,3491.3,3490.7,3.2078]
[1735911763931,3.2078,3491.5,3491.0,0.28669]
[1735911764227,40.8,3491.2,3491.0,0.28669]
[1735911764628,41.08667,3491.2,3490.7,3.2078]
[1735911764825,40.8,3491.2,3490.9,2.68115295]
[1735911765028,0.7165,3492.2,3490.9,2.68115295]
[1735911765029,0.28664,3491.7,3491.4,0.28665]
[1735911765224,0.28664,3491.6,3491.4,0.28665]
[1735911765425,40.8,3491.5,3491.3,0.28666]
[1735911765822,0.28664,3491.6,3491.4,0.28666]
[1735911766026,0.28665,3491.5,3491.2,0.28667]
[1735911766238,0.28664,3491.6,3491.3,0.28666]
[1735911766724,0.28665,3491.5,3491.2,0.28667]
[1735911766927,40.8,3491.7,3491.3,0.28666]
[1735911767133,40.8,3491.7,3491.2,0.28667]
[1735911767332,0.28664,3491.6,3490.9,2.68115295]
[1735911767630,0.28671,3490.8,3490.7,3.2078]
[1735911768126,3.92446,3491.4,3490.7,3.49451]
[1735911768127,0.2867,3490.9,3490.7,3.49451]
[1735911768322,0.2867,3490.9,3490.4,2.68115295]
[1735911768520,0.28669,3491.0,3490.8,0.2867]
[1735911768720,0.2867,3490.9,3490.7,0.28671]
[1735911769325,0.2867,3490.9,3490.8,0.28671]
[1735911769525,0.2867,3490.9,3490.4,2.68115295]
[1735911769726,0.2867,3490.9,3490.7,0.28671]
[1735911769934,0.28669,3491.0,3490.8,0.2867]
[1735911770128,0.28668,3491.2,3491.0,0.28669]
[1735911770531,40.8,3491.3,3491.0,0.28669]
[1735911770731,0.28668,3491.1,3490.9,0.28669]
[1735911771229,40.8,3491.3,3490.7,3.2078]
[1735911771436,0.28668,3491.1,3490.9,0.28669]
[1735911771622,0.28668,3491.1,3491.0,0.28669]
[1735911772034,0.28668,3491.1,3490.7,3.2078]
[1735911772529,0.28668,3491.1,3491.0,0.28669]
[1735911773633,44.0078,3491.4,3490.7,3.2078]
[1735911773828,0.28669,3491.0,3490.9,0.28669]
[1735911774021,44.0078,3491.4,3490.7,3.2078]
[1735911774934,0.28668,3491.1,3491.0,0.28669]
[1735911775234,0.28667,3491.3,3491.2,0.28667]
[1735911775938,3.49446,3491.4,3491.3,0.28666]
[1735911776235,40.8,3491.8,3490.8,3.39791295]
[1735911776236,3.2078,3491.8,3491.1,3.2078]
[1735911776542,3.2078,3491.8,3491.6,0.28664]
[1735911776543,0.28663,3491.7,3491.6,0.28664]
[1735911776730,3.2078,3491.8,3491.7,0.28663]
[1735911777034,3.2078,3491.8,3491.2,2.68115295]
[1735911777232,3.2078,3491.8,3491.7,0.28663]
[1735911777531,3.49442,3491.8,3491.7,0.28663]
[1735911778335,3.2078,3491.8,3491.7,0.28663]
[1735911781334,3.49442,3491.8,3491.7,0.28663]
[1735911781724,3.2078,3491.8,3491.7,0.28663]
[1735911782433,3.49442,3491.8,3491.7,0.28663]
[1735911784029,3.2078,3491.8,3491.7,0.28663]
[1735911784438,3.49442,3491.8,3491.7,0.28663]
[1735911785032,3.2078,3491.8,3491.7,0.28663]
[1735911786530,0.28658,3492.4,3492.3,0.28658]
[1735911787835,0.28659,3492.3,3492.2,0.28658]
[1735911788135,0.28658,3492.4,3492.3,0.28657]
[1735911790439,0.28656,3492.7,3492.6,0.28655]
[1735911790737,3.2078,3492.9,3492.4,0.28657]
[1735911790738,0.28658,3492.5,3492.4,0.28657]
[1735911793035,3.2078,3492.9,3492.0,5.44947605]
[1735911793036,0.71638,3492.7,3492.0,5.44947605]
[1735911793243,0.2866,3492.2,3492.1,0.28659]
[1735911794529,3.2078,3492.5,3492.0,3.2078]
[1735911794741,0.28659,3492.3,3492.2,0.28658]
[1735911794942,0.71638,3492.7,3492.0,3.2078]
[1735911795236,0.2866,3492.2,3492.1,0.28659]
[1735911796541,3.2078,3492.6,3491.7,2.24167605]
[1735911796542,0.71643,3492.5,3491.7,2.24167605]
[1735911796844,0.28661,3492.0,3491.9,0.2866]
[1735911797341,0.2866,3492.1,3492.0,0.2866]
[1735911798236,0.28662,3492.0,3491.9,0.28661]
[1735911798635,3.2078,3492.6,3491.7,2.24167605]
[1735911798841,1.4324,3493.6,3492.0,5.44947605]
[1735911798842,5.44947605,3493.0,3492.0,5.44947605]
[1735911799040,0.28656,3492.6,3492.5,0.28656]
[1735911799440,0.28653,3492.9,3492.7,0.28655]
[1735911799641,3.2078,3493.0,3492.0,5.44947605]
[1735911799938,3.2078,3493.0,3492.4,0.71644]
[1735911800140,0.28654,3492.9,3492.8,0.28653]
[1735911800339,0.28655,3492.8,3492.7,0.28654]
[1735911802746,0.28654,3492.9,3492.8,0.28653]
[1735911802942,40.8,3493.2,3492.5,0.71641]
[1735911803244,40.8,3493.2,3492.8,3.2078]
[1735911803437,0.28652,3493.1,3493.0,0.28652]
[1735911803639,40.8,3493.2,3492.8,3.2078]
[1735911803833,0.28653,3493.0,3492.9,0.28653]
[1735911804641,40.8,3493.4,3492.8,3.2078]
[1735911804948,0.28653,3492.9,3492.8,0.28654]
[1735911808645,0.28653,3493.0,3492.9,0.28652]
[1735911812047,0.28652,3493.2,3493.1,0.28651]
[1735911812243,0.28649,3493.6,3493.5,0.28648]
[1735911812544,0.28649,3493.5,3493.4,0.28648]
[1735911812740,0.28648,3493.6,3493.5,0.28647]
[1735911812943,5.20869527,3494.2,3494.1,0.28643]
[1735911812944,4.49261527,3494.2,3494.1,0.28643]
[1735911813138,4.49261527,3494.2,3493.6,3.2078]
[1735911813351,2.24167605,3494.0,3493.0,5.44947605]
[1735911813651,0.28649,3493.5,3493.4,0.28649]
[1735911813839,0.28651,3493.2,3493.1,0.28651]
[1735911814040,2.95785605,3493.7,3492.7,1.164]
[1735911814245,0.28652,3493.1,3493.0,0.28652]
[1735911814441,0.71623,3493.5,3492.7,1.164]
[1735911814442,0.28652,3493.2,3493.1,0.28651]
[1735911815246,2.95785605,3493.7,3492.6,4.42173334]
[1735911815247,3.2078,3493.4,3492.6,4.42173334]
[1735911815455,0.28655,3492.8,3492.7,0.28654]
[1735911815752,0.28655,3492.7,3492.6,4.42173334]
[1735911816245,0.28657,3492.4,3492.3,0.28658]
[1735911816944,0.28657,3492.4,3492.1,3.2078]
[1735911816945,6.16580605,3493.0,3492.1,3.2078]
[1735911817146,0.28657,3492.5,3492.4,0.28656]
[1735911818547,6.16580605,3493.0,3492.1,3.2078]
[1735911818854,0.28658,3492.4,3492.3,0.28658]
[1735911819551,40.8,3492.8,3492.1,3.2078]
[1735911819752,3.2078,3492.2,3491.6,4.42173334]
[1735911819954,0.28663,3491.7,3491.6,4.42173334]
[1735911820449,0.28664,3491.6,3491.5,4.42173334]
[1735911821949,0.28664,3491.7,3490.4,3.92465]
[1735911822142,0.28668,3491.1,3490.4,3.92465]
[1735911822345,41.08668,3491.1,3490.4,3.92465]
[1735911822855,41.08668,3491.1,3490.5,0.28673]
[1735911823049,41.08668,3491.1,3490.4,3.92465]
[1735911823246,3.2078,3491.4,3490.4,3.2078]
[1735911823455,0.28667,3491.3,3491.2,0.28667]
[1735911823950,3.2078,3491.4,3490.8,3.2078]
[1735911824156,3.2078,3491.4,3490.4,3.2078]
[1735911824556,3.2078,3491.4,3490.7,0.28671]
[1735911824557,0.28671,3490.8,3490.7,0.28671]
[1735911825352,0.28671,3490.8,3490.6,0.28672]
[1735911825961,0.28671,3490.8,3490.7,0.28671]
[1735911826151,0.28671,3490.9,3490.7,0.28671]
[1735911826555,3.9244,3491.7,3490.4,3.2078]
[1735911826757,0.28668,3491.2,3490.6,0.28672]
[1735911827059,0.28666,3491.4,3491.2,0.28667]
[1735911827363,0.28666,3491.4,3491.3,0.28666]
[1735911827556,0.28664,3491.6,3491.2,0.28667]
[1735911827763,0.28666,3491.3,3491.2,0.28667]
[1735911828459,3.2078,3491.7,3490.8,3.2078]
[1735911828758,3.2078,3491.7,3490.8,3.92457]
[1735911828963,0.28667,3491.3,3491.2,0.28667]
[1735911829762,0.28665,3491.5,3491.4,0.28665]
[1735911829957,3.2078,3491.7,3490.8,3.2078]
[1735911830160,0.28667,3491.3,3491.2,0.28667]
[1735911831256,0.2867,3491.0,3490.9,0.28669]
[1735911831457,0.2867,3490.9,3490.8,0.2867]
[1735911831656,0.28671,3490.8,3490.7,0.28671]
[1735911831959,3.2078,3491.3,3490.4,3.2078]
[1735911832160,0.2867,3490.9,3490.8,0.2867]
[1735911832360,0.28671,3490.8,3490.7,0.28671]
[1735911832758,3.2078,3491.3,3490.4,3.2078]
[1735911832956,0.28668,3491.1,3491.0,0.28668]
[1735911833157,3.2078,3491.7,3490.3,2.6814533]
[1735911833158,3.2078,3491.7,3490.9,3.2078]
[1735911833365,0.28666,3491.4,3491.3,0.28666]
[1735911833554,0.28666,3491.4,3490.9,3.2078]
[1735911833555,0.28665,3491.5,3491.4,0.28665]
[1735911834763,3.2078,3491.7,3490.9,3.2078]
[1735911835063,0.28667,3491.3,3491.2,0.28667]
[1735911836568,0.28669,3491.1,3491.0,0.28668]
[1735911837864,0.28668,3491.2,3491.1,0.28668]
[1735911838568,3.2078,3491.7,3490.6,0.7168]
[1735911838866,0.28669,3491.1,3491.0,0.28668]
[1735911839262,0.71663,3491.5,3490.5,3.92462]
[1735911839568,0.28671,3490.8,3490.7,0.28671]
[1735911840067,0.2867,3490.9,3490.8,0.2867]
[1735911840565,0.71663,3491.5,3490.5,3.92463]
[1735911840770,0.28668,3491.2,3491.1,0.28668]
[1735911841666,0.28668,3491.2,3491.1,0.28667]
[1735911841973,0.28667,3491.3,3491.2,0.28667]
[1735911842562,3.2078,3491.7,3490.9,3.2078]
[1735911842762,3.2078,3491.7,3491.1,2.24238883]
[1735911842966,3.2078,3491.7,3491.6,0.28664]
[1735911843172,3.2078,3491.7,3491.1,2.24238883]
[1735911843476,0.28666,3491.5,3491.4,0.28665]
[1735911843672,3.2078,3491.7,3491.0,0.28669]
[1735911843673,0.28669,3491.1,3491.0,0.28669]
[1735911844469,5.45018883,3491.7,3490.9,3.2078]
[1735911844666,0.28669,3491.0,3490.9,3.2078]
[1735911844872,0.28669,3491.0,3490.2,2.95927883]
[1735911844873,0.28673,3490.7,3490.6,0.28671]
[1735911845571,2.24238883,3491.4,3490.3,3.2078]
[1735911845572,0.28671,3490.8,3490.7,0.28671]
[1735911845772,0.71668,3491.3,3490.3,3.2078]
[1735911845974,0.71668,3491.3,3490.9,0.28669]
[1735911845975,0.2867,3491.0,3490.9,0.28669]
[1735911846173,3.2078,3491.5,3490.7,3.2078]
[1735911846368,0.28668,3491.2,3491.1,0.28667]
[1735911846574,0.2867,3491.0,3490.9,0.28669]
[1735911847668,0.28671,3490.9,3490.8,0.2867]
[1735911847870,0.28671,3490.8,3490.7,0.28671]
[1735911849165,0.2867,3491.0,3490.9,0.28669]
[1735911849878,0.71665,3491.4,3490.8,0.28669]
[1735911849879,0.28671,3490.9,3490.8,0.28669]
[1735911850073,2.95903883,3491.4,3490.4,0.71684]
[1735911850378,0.28669,3491.1,3491.0,0.28668]
[1735911851476,0.2867,3491.0,3490.9,0.28669]
[1735911852867,0.28667,3491.3,3491.2,0.28666]
[1735911854170,0.28667,3491.4,3491.3,0.28665]
[1735911855475,0.28668,3491.2,3491.1,0.28667]
[1735911860477,2.24238883,3491.4,3490.4,3.2078]
[1735911860672,0.2867,3491.0,3490.9,0.28669]
[1735911860873,0.2867,3491.0,3490.6,0.71681]
[1735911861080,0.28671,3490.9,3490.8,0.2867]
[1735911861483,41.08671,3490.9,3490.8,0.2867]
[1735911863192,0.28668,3491.3,3491.2,0.28666]
[1735911865495,3.36467108,3491.4,3490.8,3.92455]
[1735911865695,0.28669,3491.1,3491.0,0.28667]
[1735911866491,0.2867,3491.0,3490.9,0.2867]
[1735911868793,0.2867,3491.0,3490.9,4.70843334]
[1735911873101,0.2867,3491.0,3490.9,4.42173334]
[1735911873399,5.2867,3491.0,3490.9,4.42173334]
[1735911874104,46.0867,3491.0,3490.9,4.42173334]
[1735911874801,0.28674,3490.4,3490.3,0.28674]
[1735911875001,2.24238883,3490.5,3490.0,4.42173334]
[1735911875197,0.28676,3490.1,3490.0,4.42173334]
[1735911876404,0.28676,3490.1,3489.8,0.20202]
[1735911876405,0.28678,3489.9,3489.8,0.20202]
[1735911877700,2.52916883,3489.9,3489.8,0.20202]
[1735911877907,0.2868,3489.7,3489.6,4.42173334]
[1735911878200,45.1718,3489.7,3489.3,4.42173334]
[1735911878401,0.28682,3489.4,3489.3,4.42173334]
[1735911879893,0.28682,3489.4,3489.0,12.05126668]
[1735911879894,2.25385716,3489.6,3489.1,0.28684]
[1735911880103,0.28685,3489.1,3489.0,3.49465]
[1735911882804,0.2868,3489.7,3489.2,0.28683]
[1735911882999,3.2078,3489.8,3489.0,5.45018883]
[1735911883204,0.2868,3489.7,3489.6,0.2868]
[1735911884109,0.2868,3489.7,3489.1,0.71712]
[1735911884110,3.2078,3489.8,3489.7,0.2868]
[1735911884405,3.49459,3489.8,3489.7,0.2868]
[1735911884902,0.28681,3489.7,3489.6,0.2868]
[1735911885103,3.2078,3489.8,3489.0,5.45018883]
[1735911885303,0.28684,3489.3,3489.2,0.28683]
[1735911886708,0.28683,3489.4,3489.3,0.28682]
[1735911887709,0.28684,3489.3,3489.2,0.28683]
[1735911887899,0.71701,3489.7,3489.1,0.28684]
[1735911887900,0.28685,3489.2,3489.1,0.28684]
[1735911888502,2.24238883,3489.6,3489.0,3.2078]
[1735911888708,0.28687,3488.8,3488.7,0.28688]
[1735911889313,0.28686,3489.0,3488.9,0.28685]
[1735911892709,0.28687,3488.9,3488.8,0.28687]
[1735911894612,3.2078,3489.4,3488.7,3.2078]
[1735911894805,0.71702,3489.6,3488.7,3.2078]
[1735911895111,0.28683,3489.4,3489.3,0.28682]
[1735911895309,0.28684,3489.3,3489.2,0.28683]
[1735911895906,0.71703,3489.6,3488.9,2.24238883]
[1735911896107,0.28685,3489.2,3489.1,0.28684]
[1735911897012,0.28687,3488.9,3488.8,0.28686]
[1735911897709,0.28685,3489.2,3489.1,0.28684]
[1735911897910,3.2078,3489.8,3488.7,3.925]
[1735911898116,0.28684,3489.3,3489.2,0.28683]
[1735911898308,0.28685,3489.1,3489.0,0.28684]
[1735911898815,0.28687,3488.9,3488.8,0.28686]
[1735911900315,0.28687,3488.9,3488.7,3.2078]
[1735911900316,0.71709,3489.3,3488.7,3.2078]
[1735911900517,0.28685,3489.1,3489.0,0.28684]
[1735911900820,0.71707,3489.4,3488.7,3.2078]
[1735911901012,0.28687,3488.8,3488.7,3.49468]
[1735911901213,2.95948883,3489.3,3488.5,0.28689]
[1735911901214,0.2869,3488.6,3488.5,0.28689]
[1735911902212,0.71717,3488.9,3488.3,3.2078]
[1735911902413,0.2869,3488.5,3488.4,0.2869]
[1735911903523,0.28692,3488.3,3488.2,0.28691]
[1735911904714,3.2078,3488.7,3488.2,2.24238883]
[1735911904919,0.2869,3488.6,3488.5,0.28689]
[1735911905216,0.71716,3489.0,3488.3,3.2078]
[1735911905418,0.28688,3488.8,3488.7,0.28687]
[1735911905920,3.92487,3489.4,3488.3,3.2078]
[1735911906218,3.2078,3489.4,3488.7,3.2078]
[1735911906522,3.2078,3489.4,3489.3,0.28683]
[1735911906716,0.28685,3489.2,3489.1,0.28683]
[1735911907018,0.28687,3489.0,3488.9,0.28685]
[1735911907523,0.28687,3488.9,3488.8,0.28686]
[1735911908517,2.95946883,3489.3,3488.3,1.88127]
[1735911908720,3.2078,3489.4,3488.6,3.2078]
[1735911908917,0.28684,3489.3,3489.2,0.28683]
[1735911909125,3.49462,3489.4,3489.3,0.28683]
[1735911910218,0.28685,3489.1,3489.0,0.28684]
[1735911912429,0.28684,3489.3,3489.2,0.28683]
[1735911914123,3.49462,3489.4,3489.3,0.28683]
[1735911914623,3.2078,3489.4,3489.3,0.28683]
[1735911915633,3.49462,3489.4,3489.3,0.28683]
[1735911916328,3.2078,3489.4,3488.8,0.71718]
[1735911916526,3.2078,3489.4,3489.3,0.28683]
[1735911916825,3.49462,3489.4,3489.3,0.28683]
[1735911917026,0.28684,3489.3,3489.2,0.28683]
[1735911917923,0.28684,3489.3,3488.5,2.17379218]
[1735911918129,0.28684,3489.3,3489.2,0.28683]
[1735911918823,3.2078,3489.4,3488.9,0.71714]
[1735911919328,0.28684,3489.3,3489.2,0.28683]
[1735911919530,0.28684,3489.3,3488.5,3.2078]
[1735911919531,2.24238883,3489.3,3488.5,3.2078]
[1735911919731,0.28687,3488.9,3488.8,0.28686]
[1735911921528,3.49465,3489.0,3488.9,0.28686]
[1735911921833,3.2078,3489.0,3488.9,0.28686]
[1735911924233,3.2078,3489.0,3488.5,3.92504]
[1735911924435,0.28687,3488.9,3488.8,0.28686]
[1735911924929,3.2078,3489.0,3488.9,0.28686]
[1735911925434,3.49465,3489.0,3488.9,0.28686]
[1735911926032,3.2078,3489.0,3488.9,0.28686]
[1735911926335,3.2078,3489.0,3488.9,2.52924883]
[1735911927335,3.2078,3489.0,3488.9,6.71078863]
[1735911935035,1.63678716,3489.4,3489.3,0.28683]
[1735911935234,2.32595751,3489.6,3489.5,0.28681]
[1735911935531,4.42051433,3489.8,3489.3,5.45018883]
[1735911935721,4.42051433,3489.8,3489.7,5.73698883]
[1735911935929,5.63464291,3490.1,3489.7,5.45018883]
[1735911936130,5.63464291,3490.1,3490.0,0.28677]
[1735911936827,5.92140291,3490.1,3490.0,0.28677]
[1735911937026,0.28679,3489.8,3489.7,0.28679]
[1735911938226,2.24238883,3490.2,3489.5,8.84346668]
[1735911938426,0.71681,3490.6,3489.6,0.71701]
[1735911938629,0.28676,3490.3,3490.2,0.28675]
[1735911938925,3.2078,3490.7,3490.0,2.24238883]
[1735911939129,0.28674,3490.5,3490.4,0.28673]
[1735911939630,0.71702853,3490.5,3490.4,0.28673]
[1735911940028,0.43028853,3490.5,3490.4,0.28673]
[1735911940230,0.71701853,3490.5,3490.4,0.28673]
[1735911941140,0.28673,3490.5,3490.4,0.28673]
[1735911941536,0.28676,3490.2,3490.1,0.28676]
[1735911941942,0.28675,3490.4,3490.3,0.28674]
[1735911942734,0.28676,3490.3,3490.2,0.28675]
[1735911943131,0.28674,3490.5,3490.4,0.28673]
[1735911944242,3.49453,3490.7,3490.6,0.28672]
[1735911944534,3.49453,3490.7,3490.1,0.7169]
[1735911944535,3.2078,3490.7,3490.1,0.7169]
[1735911944740,0.28674,3490.6,3490.5,0.28673]
[1735911945544,3.2078,3490.8,3490.2,0.71688]
[1735911945738,0.28672,3490.7,3490.6,0.28671]
[1735911947044,3.2078,3490.8,3490.6,2.24238883]
[1735911947237,0.28669,3491.0,3490.9,0.2867]
[1735911947932,40.8,3491.2,3490.6,2.24238883]
[1735911948135,0.28671,3490.8,3490.7,0.2867]
[1735911950139,3.2078,3490.9,3490.2,0.71688]
[1735911950344,0.28673,3490.7,3490.6,0.28671]
[1735911950738,0.28673,3490.6,3490.5,0.28673]
[1735911950938,3.2078,3490.9,3490.2,0.71688]
[1735911951138,0.28674,3490.5,3490.4,0.28673]
[1735911951345,0.28673,3490.6,3490.5,0.28672]
[1735911951545,3.92456,3490.9,3490.6,0.28671]
[1735911951546,0.28673,3490.7,3490.6,0.28671]
[1735911952535,3.2078,3490.9,3490.8,0.28671]
[1735911952536,3.4945,3490.9,3490.8,0.28671]
[1735911953048,3.2078,3490.9,3490.3,2.95924883]
[1735911953239,0.28672,3490.8,3490.7,0.28671]
[1735911953747,0.28673,3490.6,3490.5,0.28672]
[1735911954444,3.2078,3490.9,3490.3,2.24238883]
[1735911954650,0.28671,3490.8,3490.7,0.28671]
[1735911955543,3.2078,3490.9,3490.3,2.24238883]
[1735911955742,0.28672,3490.7,3490.6,0.28671]
[1735911956948,0.28674,3490.6,3490.5,0.28672]
[1735911958950,0.28672,3490.8,3490.7,0.28671]
[1735911961648,0.28673,3490.6,3490.5,0.28672]
[1735911962052,0.28673,3490.7,3490.6,0.28671]
[1735911962451,0.71677,3490.8,3490.0,6.16711883]
[1735911962654,0.28675,3490.4,3490.3,0.28674]
[1735911964847,0.28673,3490.6,3490.5,0.28672]
[1735911966751,3.2078,3490.9,3490.0,3.92473]
[1735911966959,0.28676,3490.3,3490.2,0.28674]
[1735911968162,0.71677,3490.8,3490.0,3.2078]
[1735911968364,0.28674,3490.6,3490.5,0.28672]
[1735911969258,0.71677,3490.8,3490.2,2.24238883]
[1735911969259,3.2078,3490.9,3490.2,2.95927883]
[1735911969562,0.28673,3490.7,3490.6,0.28671]
[1735911970367,3.2078,3490.9,3490.5,2.24238883]
[1735911970564,3.2078,3490.9,3490.8,0.28671]
[1735911970866,3.4945,3490.9,3490.8,0.28671]
[1735911971265,3.2078,3490.9,3490.2,2.24238883]
[1735911971463,0.28672,3490.7,3490.6,0.28671]
[1735911971664,3.2078,3490.9,3490.4,0.28672]
[1735911971665,0.28674,3490.5,3490.4,0.28672]
[1735911972268,0.28676,3490.3,3490.2,0.28675]
[1735911973870,0.28674,3490.5,3490.4,0.28673]
[1735911974163,3.2078,3490.9,3490.2,2.24238883]
[1735911974368,0.28673,3490.7,3490.6,0.28671]
[1735911976070,0.28671,3490.8,3490.7,0.28671]
[1735911976261,3.2078,3490.9,3490.8,0.28671]
[1735911977068,3.4945,3490.9,3490.8,0.28671]
[1735911977771,3.2078,3490.9,3490.8,0.28671]
[1735911978166,3.2078,3491.3,3490.5,2.24238883]
[1735911978366,0.28669,3491.1,3491.0,0.28668]
[1735911978568,3.2078,3491.3,3490.8,2.95915883]
[1735911978768,0.28668,3491.2,3491.1,0.28667]
[1735911979172,0.28672,3490.8,3490.7,0.2867]
[1735911979372,3.2078,3490.8,3490.7,0.2867]
[1735911979867,3.49447,3491.4,3491.3,0.28666]
[1735911980367,0.28668,3491.3,3491.2,0.28666]
[1735911980873,3.49447,3491.4,3491.3,0.28666]
[1735911981967,0.28667,3491.4,3491.3,0.28666]
[1735911982575,3.49447,3491.4,3491.3,0.28666]
[1735911982868,3.2078,3491.4,3491.3,0.28666]
[1735911983269,0.28664,3491.6,3491.1,0.71669]
[1735911983470,0.28664,3491.6,3491.5,0.28665]
[1735911983970,41.08664,3491.6,3491.5,0.28665]
[1735911985272,40.8,3491.6,3491.5,0.28665]
[1735911985476,0.28664,3491.6,3491.5,0.28665]
[1735911987277,0.28669,3491.1,3491.0,0.28668]
[1735911987675,41.08669,3491.1,3491.0,0.28668]
[1735911988273,40.8,3491.1,3490.8,6.66092609]
[1735911988474,3.4945,3490.9,3490.8,6.66092609]
[1735911989374,3.2078,3490.9,3490.5,0.28673]
[1735911989578,3.92457,3490.9,3490.2,7.82392609]
[1735911989780,0.28675,3490.4,3490.3,0.28673]
[1735911989981,0.71681,3490.7,3490.2,6.66092609]
[1735911990179,0.28675,3490.3,3490.2,6.66092609]
[1735911990379,3.2078,3490.5,3490.1,6.66092609]
[1735911990582,0.28676,3490.2,3490.1,6.66092609]
[1735911991774,0.28676,3490.2,3490.1,6.94768609]
[1735911992270,0.28676,3490.2,3490.1,0.28676]
[1735911992474,0.28677,3490.1,3490.0,0.28677]
[1735911992676,3.2078,3490.1,3490.0,0.28677]
[1735911993587,0.28673,3490.6,3490.5,0.28672]
[1735911993881,0.28672,3490.7,3490.6,0.28671]
[1735911994086,4.49123569,3490.8,3490.3,0.71686]
[1735911994280,4.77794569,3490.8,3490.7,0.28671]
[1735911994983,0.28671,3490.8,3490.7,0.28671]
[1735911995577,0.28675,3490.4,3490.3,0.28674]
[1735911995978,0.28676,3490.2,3490.1,6.66092609]
[1735911997384,0.28676,3490.2,3489.3,3.40538883]
[1735911997385,2.24238883,3490.3,3489.4,6.66092609]
[1735911997584,2.52919883,3489.5,3489.4,6.66092609]
[1735911997978,7.52919883,3489.5,3489.4,6.66092609]
[1735911998485,43.32919883,3489.5,3489.4,6.66092609]
[1735911998671,48.32919883,3489.5,3489.4,6.66092609]
[1735911998874,48.32919883,3489.5,3489.4,4.77492609]
[1735911999485,48.32919883,3489.5,3489.4,4.19236609]
[1735911999687,0.2869,3488.4,3488.1,6.78329609]
[1735912000185,5.45018883,3488.8,3488.1,3.57549609]
[1735912000388,0.28692,3488.3,3488.2,0.28692]
[1735912000581,0.28691,3488.3,3488.2,0.28692]
[1735912000776,0.28692,3488.2,3488.1,3.57549609]
[1735912001083,6.16738883,3488.8,3488.1,3.57549609]
[1735912001286,0.28691,3488.3,3488.2,0.28691]
[1735912002285,0.2869,3488.4,3488.3,0.28691]
[1735912002486,5.45018883,3488.8,3487.8,0.71739]
[1735912002686,0.28691,3488.4,3488.3,0.28691]
[1735912003176,3.2078,3488.8,3488.3,2.24238883]
[1735912003380,3.2078,3488.8,3488.7,0.28688]
[1735912004584,5.6198856,3489.7,3488.7,3.2078]
[1735912004780,3.66429677,3489.7,3489.6,0.2868]
[1735912005089,0.2868,3489.7,3489.6,0.2868]
[1735912005684,3.2078,3489.8,3489.0,0.71714]
[1735912005991,0.28684,3489.3,3489.2,0.28683]
[1735912006184,0.28684,3489.2,3489.1,0.28684]
[1735912006985,3.2078,3489.8,3488.9,2.24238883]
[1735912007185,0.28683,3489.4,3489.3,0.28682]
[1735912007383,0.28683,3489.4,3488.9,2.24238883]
[1735912007384,0.28683,3489.3,3489.2,0.28683]
[1735912007904,0.28681,3489.6,3489.5,0.2868]
[1735912008087,0.7169,3490.2,3489.2,0.7171]
[1735912008293,3.2078,3490.3,3489.5,5.45018883]
[1735912008482,3.37749677,3490.6,3489.8,2.24238883]
[1735912008685,0.28674,3490.5,3490.4,0.28673]
[1735912009389,4.49123569,3490.8,3489.9,3.2078]
[1735912009585,3.2078,3490.7,3489.8,2.24238883]
[1735912009782,0.28674,3490.4,3490.3,0.28674]
[1735912010389,0.28676,3490.3,3490.2,0.28675]
[1735912010588,0.28675,3490.3,3490.2,0.28675]
[1735912010787,0.28675,3490.3,3489.8,2.24238883]
[1735912010788,2.24238883,3490.9,3489.8,2.24238883]
[1735912010984,0.28673,3490.6,3490.5,0.28673]
[1735912011185,0.28672,3490.6,3490.5,0.28673]
[1735912011586,3.2078,3491.3,3490.4,2.24238883]
[1735912011795,0.28669,3491.0,3490.9,0.28669]
[1735912011993,3.2078,3491.3,3490.4,2.24238883]
[1735912012186,0.2867,3490.9,3490.8,0.2867]
[1735912012388,0.28671,3490.8,3490.5,0.28673]
[1735912012585,3.2078,3491.3,3490.4,2.24238883]
[1735912012905,0.2867,3490.9,3490.8,0.2867]
[1735912013592,3.2078,3491.3,3490.3,3.2078]
[1735912013787,2.24238883,3491.2,3490.3,3.2078]
[1735912013992,0.28672,3490.7,3490.6,0.28672]
[1735912014192,0.28671,3490.8,3490.6,0.28672]
[1735912014397,0.28672,3490.7,3490.6,0.28672]